bitfinex/quotes_ETHUSD_20240614
["timestamp","ask_amount","ask_price","bid_price","bid_amount"]
[1718378522881,2.94710065,3477.8,3477.1,4.24649637]
[1718378523486,2.94718065,3477.7,3477.1,1.37054637]
[1718378523687,2.87564,3477.5,3476.8,6.07]
[1718378524098,2.94742065,3477.4,3476.8,3.1938]
[1718378524515,2.87571,3477.4,3476.8,3.1938]
[1718378524724,2.87563,3477.5,3476.8,3.1938]
[1718378525030,2.87539,3477.8,3477.1,2.87592]
[1718378525170,2.87547,3477.7,3477.2,0.49419935]
[1718378525371,2.87547,3477.7,3477.2,0.05751114]
[1718378526473,2.87547,3477.7,3477.0,2.87602]
[1718378526674,2.87547,3477.7,3477.0,3.91396651]
[1718378527179,3.0,3478.0,3477.3,2.87575]
[1718378528104,5.87524,3478.0,3477.2,2.87585]
[1718378528421,2.94701065,3477.9,3477.2,2.87585]
[1718378528635,3.0,3477.8,3477.2,2.87585]
[1718378529817,3.0,3477.8,3477.3,2.87576]
[1718378530046,3.0,3478.0,3477.3,2.87576]
[1718378530258,0.07171065,3477.9,3477.3,2.87576]
[1718378530436,2.94701065,3477.9,3477.2,3.69818717]
[1718378530750,3.0,3477.8,3477.2,3.69818717]
[1718378532106,3.0,3477.8,3477.3,2.93328001]
[1718378532427,2.87505,3478.2,3477.5,6.17039]
[1718378532628,3.0,3478.1,3477.5,3.2948]
[1718378533178,7.27,3478.4,3477.6,0.05750726]
[1718378533315,7.27,3478.4,3477.9,2.87523]
[1718378533615,2.87476,3478.6,3477.8,2.87531]
[1718378533813,3.0,3478.5,3477.8,2.87531]
[1718378534632,3.0,3478.5,3477.9,2.87527]
[1718378534943,5.48375,3478.7,3477.9,2.87527]
[1718378534944,3.0,3478.6,3477.9,2.87527]
[1718378535165,3.0,3478.6,3478.0,0.05750087]
[1718378535500,7.27,3479.0,3478.2,2.87503]
[1718378535788,7.27,3479.0,3478.4,2.87487]
[1718378536160,7.27,3479.0,3478.5,2.87478]
[1718378537392,7.27,3479.0,3478.2,2.87504]
[1718378537553,7.27,3479.0,3478.4,2.87486]
[1718378537883,7.27,3479.0,3478.6,2.87464]
[1718378538045,5.48316,3479.4,3478.6,2.87464]
[1718378538240,3.0,3479.3,3478.6,2.87464]
[1718378538440,3.0,3479.3,3478.7,2.87462]
[1718378538965,5.87399,3479.5,3478.8,6.21725]
[1718378539170,0.02915345,3479.2,3478.8,6.21725]
[1718378539376,0.07171065,3479.4,3478.4,6.16257]
[1718378539575,0.02690495,3479.1,3478.4,6.16257]
[1718378539793,2.90139898,3479.3,3478.5,2.87477]
[1718378540093,3.07171065,3479.2,3478.5,2.87477]
[1718378540688,3.07171065,3479.2,3478.6,2.87471]
[1718378541065,3.07171065,3479.2,3478.4,6.16257]
[1718378541271,3.07171065,3479.2,3478.5,2.87479]
[1718378541272,5.94593065,3479.2,3478.5,2.87479]
[1718378541586,3.07171065,3479.2,3478.7,2.87463]
[1718378541796,3.0,3479.3,3478.7,2.87463]
[1718378542600,3.0,3479.3,3478.7,1.43344514]
[1718378542802,1.20134607,3479.6,3478.7,1.43344514]
[1718378542979,0.07171065,3479.5,3478.8,2.87448]
[1718378543181,3.0,3479.5,3478.8,2.87448]
[1718378543376,3.0,3479.5,3479.0,3.2469]
[1718378543581,4.07510607,3479.8,3479.1,2.87429]
[1718378543582,3.0,3479.7,3479.1,2.87429]
[1718378544097,1.20134607,3479.9,3479.2,0.05748157]
[1718378544262,14.25473605,3480.1,3479.3,2.87407]
[1718378544263,2.87357,3480.0,3479.3,2.87407]
[1718378544467,2.94528065,3480.0,3479.3,2.87407]
[1718378544982,2.87357,3480.0,3479.3,2.87407]
[1718378545383,0.07171065,3479.9,3479.3,2.87407]
[1718378545799,0.07171065,3479.9,3479.2,2.87421]
[1718378546006,3.07171065,3479.9,3479.2,2.87421]
[1718378546310,0.07171065,3479.9,3479.3,0.05747698]
[1718378546509,0.03141927,3479.8,3479.6,2.87384]
[1718378546709,2.87321,3480.5,3479.8,2.87372]
[1718378547010,3.0,3480.4,3479.8,2.87372]
[1718378547177,3.0,3480.4,3479.7,3.0972]
[1718378547707,0.07171065,3480.3,3479.7,3.0972]
[1718378547930,0.07171065,3480.3,3479.5,2.87395]
[1718378548074,2.87331,3480.3,3479.5,2.87395]
[1718378548271,3.0,3480.2,3479.5,2.87395]
[1718378548469,3.0,3480.2,3479.6,0.05746956]
[1718378548769,3.0,3480.3,3479.7,2.87378]
[1718378548970,3.0,3480.4,3479.7,2.87378]
[1718378550813,0.07171065,3480.3,3479.4,3.1603]
[1718378550982,0.07171065,3480.3,3479.5,2.87396]
[1718378551414,2.94505065,3480.3,3479.5,2.87396]
[1718378551621,2.94505065,3480.3,3479.4,3.1603]
[1718378551622,5.6091,3480.2,3479.4,3.1603]
[1718378551905,3.60074321,3480.1,3479.4,3.1603]
[1718378552105,3.0,3480.0,3479.4,3.1603]
[1718378552714,3.0,3480.0,3479.4,6.03435]
[1718378552911,3.0,3480.1,3479.4,6.03435]
[1718378553591,3.0,3480.1,3479.7,2.87375]
[1718378553885,3.0,3480.5,3479.7,2.87375]
[1718378554226,4.20722965,3480.5,3479.7,2.87375]
[1718378554431,7.08039965,3480.5,3479.7,2.87375]
[1718378558005,7.08039965,3480.5,3479.4,7.46779514]
[1718378558344,2.87332,3480.3,3479.5,2.87396]
[1718378558500,2.8737,3479.9,3479.4,3.1603]
[1718378558852,2.87357,3480.0,3479.4,3.1603]
[1718378559006,0.07171065,3479.9,3479.4,3.1603]
[1718378559202,2.87349,3480.1,3479.4,6.03434]
[1718378559423,3.0,3480.0,3479.4,6.03434]
[1718378560509,3.0,3480.1,3479.5,2.93138632]
[1718378560742,3.0,3480.3,3479.7,2.87375]
[1718378561044,3.0,3480.4,3479.6,2.87387]
[1718378561207,3.07171065,3480.4,3479.6,2.93134053]
[1718378562552,2.87332,3480.3,3479.5,2.87395]
[1718378562759,3.07171065,3480.2,3479.5,2.87395]
[1718378565655,3.0,3480.2,3479.5,2.87395]
[1718378566334,5.8734,3480.2,3479.4,6.925177]
[1718378566535,5.8734,3480.2,3479.4,8.35862214]
[1718378566791,2.87364,3479.9,3479.4,3.1603]
[1718378566931,2.87358,3480.0,3479.3,3.0375]
[1718378567131,2.87358,3480.0,3479.3,3.628666]
[1718378567333,0.07171065,3479.9,3479.3,3.0375]
[1718378567852,2.87358,3480.0,3479.3,3.0375]
[1718378568729,0.07171065,3479.9,3479.3,3.0375]
[1718378569863,2.87358,3480.0,3479.3,3.0375]
[1718378570333,0.07171065,3479.9,3479.3,3.0375]
[1718378570759,2.87373,3479.8,3479.3,3.0375]
[1718378571134,2.87373,3479.8,3479.0,7.58041514]
[1718378571359,2.87373,3479.8,3479.0,9.16728661]
[1718378571536,2.87356,3480.0,3479.1,2.87429]
[1718378571537,2.87366,3479.9,3479.1,2.87429]
[1718378571957,2.87373,3479.8,3479.1,2.87429]
[1718378572134,0.07171065,3479.7,3479.0,4.85947147]
[1718378572337,2.87392,3479.6,3478.9,5.41369951]
[1718378572977,2.87398,3479.5,3478.8,2.87453]
[1718378573556,2.87391,3479.6,3478.8,2.87453]
[1718378573761,2.94562065,3479.6,3478.8,2.87453]
[1718378578579,2.87383,3479.7,3478.9,2.87445]
[1718378579807,2.87383,3479.7,3478.9,2.87444]
[1718378580003,2.87383,3479.7,3478.9,4.064067]
[1718378580212,4.07341866,3479.7,3478.9,4.064067]
[1718378580590,2.87383,3479.7,3478.9,4.064067]
[1718378580779,4.07341866,3479.7,3478.9,4.064067]
[1718378581407,0.07171065,3479.6,3478.9,4.064067]
[1718378581912,0.07171065,3479.6,3479.0,1.0211217]
[1718378582420,0.07171065,3479.6,3479.0,3.8954717]
[1718378583015,1.50001448,3480.0,3479.5,0.759]
[1718378583378,1.50001448,3480.1,3479.9,0.759]
[1718378583573,3.0,3480.1,3479.9,0.759]
[1718378583816,4.50001448,3480.3,3479.9,0.759]
[1718378584123,1.50001448,3480.2,3479.9,0.759]
[1718378584332,3.0,3480.4,3479.9,0.759]
[1718378584333,1.50001448,3480.3,3479.9,0.759]
[1718378584647,1.50001448,3480.2,3479.9,0.759]
[1718378584787,1.57172513,3480.2,3479.9,0.759]
[1718378584991,0.07171065,3480.2,3479.6,2.87387]
[1718378585322,1.50001448,3480.2,3479.6,2.87387]
[1718378585571,0.07171065,3480.2,3479.6,2.87387]
[1718378585711,1.50001448,3480.2,3479.6,2.87387]
[1718378585919,1.50001448,3480.2,3479.7,2.8738]
[1718378586231,1.50001448,3480.3,3479.7,2.8738]
[1718378588216,1.50652692,3480.3,3479.7,2.8738]
[1718378589845,1.50652692,3480.3,3479.6,3.783114]
[1718378589846,1.50652692,3480.3,3479.8,3.24757089]
[1718378590145,4.50652692,3480.5,3479.9,3.57668849]
[1718378590348,1.50652692,3480.5,3479.9,3.57668849]
[1718378590643,1.50652692,3480.5,3480.0,2.87353]
[1718378591452,1.50652692,3480.4,3479.9,2.87362]
[1718378592017,1.50652692,3480.5,3479.9,2.87362]
[1718378592226,1.50652692,3480.5,3479.8,6.0638]
[1718378592415,5.873,3480.7,3479.8,6.0638]
[1718378592416,1.50652692,3480.4,3479.9,2.87363]
[1718378592814,1.45652692,3480.4,3479.9,2.87363]
[1718378593257,1.45652692,3480.4,3479.8,6.0638]
[1718378593457,3.0,3480.5,3479.8,6.0638]
[1718378593660,3.0,3480.5,3479.6,1.82]
[1718378593661,0.07171065,3480.4,3479.6,1.82]
[1718378593819,2.87374,3479.8,3479.4,3.2009]
[1718378594025,2.87358,3480.0,3479.4,3.2009]
[1718378594464,2.87349,3480.1,3479.4,6.07493]
[1718378594673,3.0,3480.0,3479.4,6.07493]
[1718378595937,3.0,3480.0,3479.5,0.05747403]
[1718378596139,3.0,3480.0,3479.4,6.07493]
[1718378596339,3.0,3480.1,3479.5,0.894906]
[1718378596541,5.87348,3480.1,3479.5,0.894906]
[1718378597467,5.87348,3480.1,3479.4,6.07493]
[1718378597660,2.94529065,3480.0,3479.4,3.2009]
[1718378599171,5.36289065,3480.0,3479.2,2.87419]
[1718378599330,5.36289065,3480.0,3479.2,4.30763514]
[1718378599980,2.87358,3480.0,3479.3,2.87413]
[1718378600468,1.5065101,3480.0,3479.4,0.05747407]
[1718378602159,7.3800001,3480.1,3479.4,0.05747407]
[1718378602560,1.5065101,3480.0,3479.4,0.05747407]
[1718378602732,4.5065101,3480.1,3479.5,3.1331]
[1718378602932,4.5065101,3480.3,3479.6,3.64070263]
[1718378603234,4.5065101,3480.3,3479.7,4.30724514]
[1718378603448,3.0,3480.3,3479.8,2.8737]
[1718378603743,3.0,3480.3,3479.9,2.87364]
[1718378603943,4.5065101,3480.3,3479.9,3.66266472]
[1718378604343,3.0,3480.3,3479.9,3.66266472]
[1718378605765,1.5065101,3480.4,3479.9,3.66266472]
[1718378605946,1.5065101,3480.4,3479.9,0.78902472]
[1718378606449,1.5065101,3480.3,3479.9,0.78902472]
[1718378606771,1.5065101,3480.4,3479.9,0.78902472]
[1718378606940,1.5065101,3480.3,3479.9,1.54702472]
[1718378607278,1.5065101,3480.4,3479.9,1.54702472]
[1718378607478,1.5065101,3480.4,3480.0,0.87278999]
[1718378608043,5.87307,3480.6,3480.1,0.758]
[1718378608044,1.5065101,3480.5,3480.1,0.758]
[1718378608652,1.5065101,3480.5,3480.3,0.758]
[1718378608849,1.5065101,3480.6,3480.2,3.0295]
[1718378610254,1.5065101,3480.6,3480.3,0.758]
[1718378610473,1.5065101,3480.6,3480.3,4.72944822]
[1718378610645,3.0,3480.8,3480.5,0.758]
[1718378610646,1.5065101,3480.8,3480.5,0.758]
[1718378611045,1.5065101,3480.8,3480.3,4.671985]
[1718378611841,1.5065101,3480.9,3480.3,4.671985]
[1718378612041,1.5065101,3480.8,3480.3,4.671985]
[1718378612239,1.5065101,3480.9,3480.3,4.671985]
[1718378612637,1.5065101,3480.9,3480.4,3.9307145]
[1718378612887,1.5065101,3480.9,3480.5,0.758]
[1718378613186,4.5065101,3481.1,3480.6,3.2871]
[1718378613339,0.07171065,3481.0,3480.6,3.2871]
[1718378613539,3.07171065,3481.0,3480.6,4.37199445]
[1718378613837,0.07171065,3481.0,3480.6,4.37199445]
[1718378614035,0.07171065,3481.1,3480.6,4.37199445]
[1718378614238,4.5065101,3481.2,3480.6,4.37199445]
[1718378614472,3.0,3481.2,3480.6,4.37199445]
[1718378614672,4.50465952,3481.2,3480.6,4.37199445]
[1718378615280,0.07171065,3481.1,3480.6,4.37199445]
[1718378615943,0.07171065,3481.1,3480.6,7.24505445]
[1718378617390,4.50427718,3481.3,3480.8,2.87289]
[1718378617702,3.0,3481.2,3480.9,0.758]
[1718378617904,3.0,3481.4,3480.9,0.758]
[1718378618058,3.0,3481.5,3480.9,0.758]
[1718378618256,4.57598783,3481.5,3480.9,0.758]
[1718378618855,3.07171065,3481.5,3480.9,0.758]
[1718378619053,4.57598783,3481.5,3480.9,0.758]
[1718378619660,3.07171065,3481.5,3480.9,0.758]
[1718378621487,3.0,3481.5,3480.9,1.79455509]
[1718378621668,4.50427718,3481.7,3481.0,2.87272]
[1718378621998,4.57598783,3481.7,3481.0,2.87272]
[1718378622562,7.44815783,3481.7,3480.9,4.609904]
[1718378623361,5.94388065,3481.7,3480.9,4.609904]
[1718378625359,5.94388065,3481.7,3481.1,3.2817]
[1718378626081,5.94388065,3481.7,3481.1,4.0397]
[1718378627461,3.07171065,3481.7,3481.1,4.0397]
[1718378627661,3.0,3481.6,3481.1,4.0397]
[1718378627968,3.0,3481.8,3481.1,6.91235]
[1718378628310,3.0,3481.8,3481.2,1.15125434]
[1718378628866,3.0,3481.8,3481.5,0.758]
[1718378629060,3.0,3481.9,3481.5,0.758]
[1718378630037,3.0,3481.9,3481.7,0.758]
[1718378630206,3.0,3482.1,3481.7,0.758]
[1718378631238,0.03852571,3482.0,3481.7,0.758]
[1718378631398,3.0,3482.1,3481.7,0.758]
[1718378632856,0.07171065,3482.0,3481.6,3.1555]
[1718378633140,0.07171065,3482.0,3481.5,0.758]
[1718378633141,0.11023636,3482.0,3481.5,0.758]
[1718378633417,0.07171065,3482.0,3481.5,0.758]
[1718378635131,0.02982197,3481.9,3481.5,0.758]
[1718378635733,3.10153262,3481.9,3481.5,0.758]
[1718378636100,3.07171065,3481.9,3481.5,0.758]
[1718378636286,3.07171065,3481.9,3481.5,1.54177743]
[1718378637092,0.02971696,3481.8,3481.5,1.54177743]
[1718378637657,3.0,3481.9,3481.5,1.54177743]
[1718378637794,3.0,3481.9,3481.5,0.758]
[1718378637992,5.87199,3481.9,3481.5,0.758]
[1718378638494,0.07171065,3481.8,3481.0,3.1481]
[1718378638733,0.07171065,3481.8,3481.1,0.758]
[1718378639327,2.87233,3481.5,3480.6,5.99156]
[1718378639551,2.87233,3481.5,3480.9,0.758]
[1718378640345,2.87242,3481.4,3480.7,5.80016114]
[1718378640490,2.87242,3481.4,3480.9,0.758]
[1718378640686,2.87242,3481.4,3480.7,1.493756]
[1718378640687,0.07171065,3481.3,3480.7,1.493756]
[1718378640901,2.87257,3481.2,3480.7,0.758]
[1718378641196,2.94442065,3481.1,3480.6,3.1185]
[1718378641705,2.87279,3481.0,3480.6,3.1185]
[1718378641920,2.87279,3481.0,3480.6,3.50615]
[1718378642124,2.87267,3481.1,3480.6,3.50615]
[1718378643120,2.94446065,3481.0,3480.3,3.2223]
[1718378643518,2.87283,3480.9,3480.3,3.2223]
[1718378644125,2.87275,3481.0,3480.3,3.2223]
[1718378644457,2.94446065,3481.0,3480.3,3.2223]
[1718378644660,2.94446065,3481.0,3480.4,0.972716]
[1718378645075,2.87275,3481.0,3480.4,0.972716]
[1718378645229,5.87234,3481.5,3480.7,2.87298]
[1718378645417,2.94413065,3481.4,3480.8,2.9843]
[1718378645616,3.0,3481.3,3480.8,2.9843]
[1718378648851,0.07171065,3481.2,3480.5,2.87314]
[1718378649070,2.87272,3481.1,3480.3,2.87329]
[1718378649216,0.07171065,3481.0,3480.3,3.20093]
[1718378649417,0.07171065,3481.0,3480.4,0.758]
[1718378649621,0.07171065,3481.0,3480.4,1.98802451]
[1718378650152,2.94445065,3481.0,3480.4,1.98802451]
[1718378650353,2.87291,3480.8,3480.4,0.758]
[1718378650523,2.94474065,3480.7,3480.2,0.758]
[1718378650723,2.94474065,3480.7,3480.2,0.665652]
[1718378650961,2.87315,3480.5,3479.9,3.0249]
[1718378651318,5.87308,3480.6,3479.9,3.0249]
[1718378651520,0.07171065,3480.5,3479.9,3.0249]
[1718378651748,2.94487065,3480.5,3479.9,3.0249]
[1718378652348,2.87325,3480.4,3479.9,3.0249]
[1718378652941,3.0,3480.6,3480.1,2.87347]
[1718378653265,1.50427718,3480.7,3480.0,3.63154]
[1718378653635,5.87288,3480.9,3480.1,2.87348]
[1718378653967,0.07171065,3480.8,3480.1,3.96983151]
[1718378656334,2.94463065,3480.8,3480.1,1.09635151]
[1718378656648,5.87299,3480.7,3480.1,1.09635151]
[1718378656831,3.0,3480.7,3480.1,1.09635151]
[1718378657358,3.0,3480.7,3480.1,3.96982151]
[1718378657558,3.0,3480.7,3480.2,1.20597966]
[1718378657859,3.0,3480.8,3480.2,1.20597966]
[1718378658059,3.07171065,3480.8,3480.2,1.20597966]
[1718378661249,4.57554199,3480.8,3480.2,1.20597966]
[1718378661460,7.37673134,3480.8,3480.2,1.20597966]
[1718378662029,5.8729,3480.8,3480.2,1.96397966]
[1718378662231,5.8729,3480.8,3480.3,0.48375297]
[1718378663229,3.0,3480.8,3480.3,0.48375297]
[1718378663431,3.0,3480.8,3480.4,3.2308]
[1718378667798,5.8729,3480.8,3480.4,3.2308]
[1718378671866,5.8729,3480.8,3480.4,3.9888]
[1718378672285,5.87291,3480.8,3480.4,4.4360553]
[1718378673354,3.0,3480.8,3480.4,4.4360553]
[1718378674190,3.0,3480.8,3480.6,0.758]
[1718378674896,1.50287141,3481.2,3480.6,0.758]
[1718378675100,3.0,3481.2,3481.0,0.758]
[1718378675312,1.50287141,3481.9,3481.5,5.74464]
[1718378675600,2.87167,3482.3,3481.8,0.758]
[1718378675805,0.07171065,3482.2,3481.9,0.758]
[1718378676509,0.07171065,3482.3,3481.9,0.758]
[1718378676718,0.07171065,3482.3,3482.1,0.758]
[1718378677014,0.07171065,3482.4,3482.1,0.758]
[1718378678401,0.07171065,3482.4,3482.0,0.758]
[1718378679079,3.07171065,3482.4,3482.0,0.758]
[1718378679777,3.07171065,3482.4,3482.3,0.758]
[1718378679778,3.0,3482.4,3482.3,0.758]
[1718378679982,3.0,3482.8,3482.3,0.758]
[1718378680180,0.02805754,3482.4,3482.3,0.758]
[1718378680404,0.80905419,3482.7,3482.3,0.758]
[1718378682383,0.02797434,3482.6,3482.3,0.758]
[1718378687371,0.07171065,3482.5,3482.2,0.758]
[1718378687609,0.02797434,3482.6,3482.2,0.758]
[1718378687610,0.03189438,3482.4,3482.2,0.758]
[1718378687906,3.0,3482.6,3482.2,0.758]
[1718378688084,0.03181634,3482.3,3482.2,0.758]
[1718378688285,3.0,3482.6,3482.2,0.758]
[1718378688490,0.03181634,3482.3,3482.2,0.758]
[1718378688670,3.0,3482.6,3482.2,0.758]
[1718378688872,0.03181991,3482.3,3482.2,0.758]
[1718378689111,3.0,3482.6,3482.2,0.758]
[1718378689279,0.02801321,3482.3,3482.2,0.758]
[1718378689490,3.0,3482.6,3482.2,0.758]
[1718378689714,0.03181991,3482.3,3482.2,0.758]
[1718378689914,3.0,3482.6,3482.2,0.758]
[1718378690120,0.03182706,3482.3,3482.1,2.92925336]
[1718378690293,3.0,3483.0,3482.3,2.87164]
[1718378690609,0.07171065,3482.9,3482.5,0.758]
[1718378691217,0.07171065,3482.9,3482.3,2.87164]
[1718378691218,3.0,3483.0,3482.7,0.758]
[1718378691372,3.0,3483.1,3482.7,0.758]
[1718378691577,3.07171065,3483.1,3482.7,0.758]
[1718378692405,5.94272065,3483.1,3482.7,0.758]
[1718378692912,5.94272065,3483.1,3482.4,3.0208]
[1718378693241,5.94272065,3483.1,3482.6,0.758]
[1718378694203,0.88135607,3483.0,3482.6,0.758]
[1718378694525,0.95306672,3483.0,3482.6,0.758]
[1718378695319,3.0,3483.1,3482.6,0.758]
[1718378695500,3.0,3483.2,3482.6,0.758]
[1718378695820,3.07171065,3483.2,3482.6,0.758]
[1718378696519,2.87116,3483.0,3482.4,3.0208]
[1718378696695,3.07171065,3482.9,3482.4,3.7788]
[1718378697407,0.03226729,3482.8,3482.4,3.7788]
[1718378699395,0.03226729,3482.8,3482.6,0.758]
[1718378699782,3.0,3483.2,3482.6,0.758]
[1718378699982,0.02791651,3483.1,3482.8,0.758]
[1718378703799,3.0,3483.3,3482.8,0.758]
[1718378704114,0.03768501,3483.3,3482.9,0.758]
[1718378704282,0.03768501,3483.3,3482.9,1.120931]
[1718378704283,0.02771478,3483.3,3482.9,1.120931]
[1718378704836,0.02580509,3483.2,3483.0,0.758]
[1718378705026,5.94232065,3483.6,3483.0,0.758]
[1718378705209,0.02598368,3483.5,3483.0,0.758]
[1718378706308,0.09769433,3483.5,3483.0,0.758]
[1718378707314,2.96837433,3483.5,3483.0,0.758]
[1718378707524,2.96837433,3483.5,3482.9,2.9655]
[1718378707525,5.87076,3483.4,3482.9,2.9655]
[1718378707705,0.07171065,3483.3,3482.8,0.758]
[1718378707903,2.87092,3483.2,3482.8,0.758]
[1718378708103,3.07171065,3483.1,3482.2,3.3264]
[1718378708319,2.87135,3482.7,3482.2,4.0844]
[1718378708523,2.87127,3482.8,3482.2,4.0844]
[1718378708838,2.94298065,3482.8,3482.2,4.0844]
[1718378709343,0.07171065,3482.8,3482.4,0.758]
[1718378709527,0.07171065,3482.9,3482.4,0.758]
[1718378709926,0.07171065,3483.0,3482.6,0.758]
[1718378710433,0.07171065,3483.0,3482.2,6.19813]
[1718378710765,0.07171065,3483.0,3482.6,0.758]
[1718378711308,0.07171065,3483.1,3482.6,0.758]
[1718378711605,3.0,3483.2,3482.8,0.758]
[1718378711906,3.49644216,3483.5,3482.8,0.758]
[1718378712117,0.07171065,3483.4,3482.8,0.758]
[1718378712753,2.87091,3483.3,3482.6,0.758]
[1718378713052,3.2159,3483.1,3482.6,0.758]
[1718378713252,0.07171065,3483.0,3482.6,0.758]
[1718378715041,0.07171065,3483.0,3482.3,3.1647]
[1718378715319,2.87084,3483.3,3482.4,0.05742741]
[1718378715525,2.87084,3483.3,3482.3,3.48117]
[1718378715526,3.07171065,3483.2,3482.7,0.758]
[1718378716127,3.0,3483.2,3482.7,0.758]
[1718378716452,3.0,3483.3,3482.7,0.758]
[1718378716657,3.07171065,3483.3,3482.9,0.758]
[1718378716951,3.0,3483.4,3483.1,0.758]
[1718378717172,6.36694375,3483.7,3483.1,0.758]
[1718378717342,0.07171065,3483.6,3483.3,0.758]
[1718378719372,3.0,3483.7,3483.3,0.758]
[1718378719532,0.07171065,3483.6,3483.3,0.758]
[1718378720436,3.0,3483.8,3483.3,0.758]
[1718378720636,4.49952262,3483.9,3483.3,0.758]
[1718378720836,0.07171065,3483.8,3483.3,0.758]
[1718378721277,4.44520104,3483.8,3483.3,0.758]
[1718378721485,4.50304039,3483.7,3483.1,0.758]
[1718378721796,0.07171065,3483.6,3483.1,0.758]
[1718378722742,1.57475104,3483.6,3483.1,0.758]
[1718378722944,0.07171065,3483.6,3483.1,0.758]
[1718378723420,0.07171065,3483.6,3483.1,1.15188]
[1718378724079,1.50304039,3483.7,3483.4,3.387]
[1718378724302,1.37886424,3484.0,3483.4,3.387]
[1718378724303,4.86949809,3484.2,3483.5,0.758]
[1718378724452,7.27,3484.3,3483.9,0.758]
[1718378724792,1.50304039,3484.6,3484.1,4.0519]
[1718378724952,10.4525127,3484.9,3484.5,0.758]
[1718378724953,1.50304039,3484.8,3484.5,0.758]
[1718378725335,1.50304039,3485.0,3484.7,0.758]
[1718378725580,10.13921,3485.3,3484.9,0.758]
[1718378725581,1.50304039,3485.2,3484.9,0.758]
[1718378725763,1.50304039,3485.4,3485.1,0.758]
[1718378725936,1.50304039,3485.5,3485.1,0.758]
[1718378726135,1.50304039,3485.6,3484.7,3.1753]
[1718378726381,1.50304039,3485.7,3485.5,0.758]
[1718378726586,2.86846,3486.2,3485.5,0.758]
[1718378726766,2.86846,3486.2,3485.7,0.758]
[1718378726767,2.94017065,3486.2,3485.7,0.758]
[1718378726969,2.94017065,3486.2,3485.4,1.814]
[1718378726970,0.07171065,3486.2,3485.4,1.814]
[1718378727165,0.07171065,3486.2,3485.5,3.3317]
[1718378727660,2.94018065,3486.2,3485.5,3.3317]
[1718378728171,3.0,3486.1,3485.5,3.3317]
[1718378728380,0.07171065,3486.0,3485.5,3.3317]
[1718378728752,2.86879,3485.8,3485.0,3.307]
[1718378728982,0.07171065,3485.7,3484.5,3.2109]
[1718378729182,2.94066065,3485.6,3484.5,4.64434514]
[1718378729690,3.0,3485.5,3484.5,4.64434514]
[1718378729841,0.07171065,3485.4,3484.5,4.64434514]
[1718378730035,0.07171065,3485.4,3484.6,0.75143151]
[1718378730487,3.0,3485.5,3484.7,1.49083097]
[1718378730683,3.0,3485.8,3485.0,1.814]
[1718378731012,2.86862,3486.0,3485.0,1.814]
[1718378731209,3.07171065,3485.9,3485.0,1.814]
[1718378732135,2.86878,3485.8,3485.0,1.814]
[1718378732411,3.0,3485.9,3485.0,1.814]
[1718378732708,0.07171065,3485.8,3485.0,1.814]
[1718378733340,3.0,3485.9,3485.1,3.2036]
[1718378733619,3.0,3486.0,3485.2,0.64510451]
[1718378733779,3.07171065,3486.0,3485.2,0.64510451]
[1718378734438,3.0,3486.0,3485.3,0.05737812]
[1718378734727,3.0,3486.2,3485.4,0.53395278]
[1718378734922,0.07171065,3486.2,3485.3,0.05737812]
[1718378736841,2.94017065,3486.2,3485.3,0.05737812]
[1718378737006,2.94017065,3486.2,3485.2,2.07854965]
[1718378737206,3.0,3486.1,3485.2,2.07854965]
[1718378737444,0.07171065,3486.0,3485.2,2.07854965]
[1718378737746,0.07171065,3486.0,3485.3,0.70961496]
[1718378738610,0.07171065,3486.0,3485.1,3.2036]
[1718378738836,2.94040065,3486.0,3485.1,3.2036]
[1718378739035,2.86871,3485.9,3485.1,3.2036]
[1718378739343,2.86908,3485.5,3485.1,3.2036]
[1718378739548,3.0,3486.1,3485.1,3.2036]
[1718378739549,2.86862,3486.0,3485.1,3.2036]
[1718378739853,3.0,3486.3,3485.2,1.490825]
[1718378740062,3.0,3486.3,3485.3,1.87137512]
[1718378740063,0.07171065,3486.2,3485.3,1.87137512]
[1718378740212,2.94017065,3486.2,3485.3,1.87137512]
[1718378740414,3.0,3486.1,3485.4,0.65084203]
[1718378740631,3.0,3486.1,3485.4,0.70821716]
[1718378740832,5.86838,3486.3,3485.4,0.70821716]
[1718378741039,0.07171065,3486.2,3485.4,0.05737513]
[1718378743065,3.0,3486.3,3485.5,1.43344514]
[1718378743235,3.2291,3487.1,3485.7,1.814]
[1718378743430,0.03758053,3486.2,3485.8,0.05736726]
[1718378743634,2.9397491,3486.7,3485.8,0.05736726]
[1718378743834,3.52050301,3486.7,3485.8,0.05736726]
[1718378744756,2.9397491,3486.7,3485.8,0.05736726]
[1718378745253,3.0,3486.6,3485.8,0.05736726]
[1718378745468,5.86814,3486.6,3485.9,0.05736728]
[1718378745758,5.86814,3486.6,3485.9,0.38784852]
[1718378745930,0.07170908,3486.5,3485.9,0.33048124]
[1718378746162,5.86814,3486.6,3486.1,3.2892]
[1718378746163,3.0,3486.6,3486.1,3.2892]
[1718378746377,7.27,3487.1,3486.2,0.42506783]
[1718378746549,3.0,3487.0,3486.3,0.05736043]
[1718378746746,2.86764,3487.2,3486.3,0.05736043]
[1718378746970,3.0,3487.1,3486.3,0.05736043]
[1718378747485,2.86772,3487.1,3486.3,0.05736043]
[1718378747704,3.0,3487.0,3486.3,0.05736043]
[1718378748261,2.86739,3487.5,3486.4,4.88484514]
[1718378748561,2.93916329,3487.4,3486.5,0.58834567]
[1718378749191,2.86755,3487.3,3486.5,0.58834567]
[1718378749624,3.0,3487.2,3486.5,2.02179081]